[Event "Titled Tuesday Blitz February 14 Late 2023"]
[White "Richter, Paul"]
[Black "Holt, Conrad"]
[WhiteFideId "2046350"]
[BlackFideId "2034387"]
[WhiteElo "2171"]
[BlackElo "2540"]
[Result "1/2-1/2"]
[Round "02"]
[TimeControl "180+2"]
[Date "2023.02.14"]
[WhiteClock "0:00:09"]
[BlackClock "0:00:07"]

1. e4 {[%clk 0:03:00]}  e6 {[%clk 0:02:59]} 2. d4 {[%clk 0:03:00]}  d5 {[%clk 0:02:59]} 3. Nc3 {[%clk 0:03:01]}  Nf6 {[%clk 0:02:58]} 4. Bg5 {[%clk 0:03:00]}  dxe4 {[%clk 0:02:58]} 5. Nxe4 {[%clk 0:03:01]}  Be7 {[%clk 0:02:58]} 6. Bxf6 {[%clk 0:03:01]}  Bxf6 {[%clk 0:02:59]} 7. Nf3 {[%clk 0:03:01]}  Nd7 {[%clk 0:02:59]} 8. Bd3 {[%clk 0:02:57]}  c5 {[%clk 0:02:59]} 9. Qe2 {[%clk 0:02:41]}  Qa5+ {[%clk 0:02:58]} 10. c3 {[%clk 0:02:41]}  cxd4 {[%clk 0:02:57]} 11. Nxf6+ {[%clk 0:02:39]}  Nxf6 {[%clk 0:02:58]} 12. Nxd4 {[%clk 0:02:39]}  O-O {[%clk 0:02:58]} 13. O-O {[%clk 0:02:36]}  e5 {[%clk 0:02:58]} 14. Nc2 {[%clk 0:02:22]}  Bg4 {[%clk 0:02:52]} 15. f3 {[%clk 0:02:16]}  Be6 {[%clk 0:02:37]} 16. Ne3 {[%clk 0:01:57]}  Rad8 {[%clk 0:02:32]} 17. Rfd1 {[%clk 0:01:52]}  Rd7 {[%clk 0:02:23]} 18. Bc4 {[%clk 0:01:39]}  Bxc4 {[%clk 0:02:16]} 19. Qxc4 {[%clk 0:01:40]}  Qb6 {[%clk 0:02:13]} 20. Qe2 {[%clk 0:01:37]}  e4 {[%clk 0:02:00]} 21. Rxd7 {[%clk 0:01:23]}  exf3 {[%clk 0:01:57]} 22. Qxf3 {[%clk 0:00:45]}  Nxd7 {[%clk 0:01:54]} 23. Qf2 {[%clk 0:00:44]}  Re8 {[%clk 0:01:29]} 24. Nc4 {[%clk 0:00:37]}  Qc7 {[%clk 0:01:20]} 25. b3 {[%clk 0:00:29]}  b5 {[%clk 0:01:18]} 26. Rf1 {[%clk 0:00:29]}  Nf6 {[%clk 0:01:11]} 27. Ne3 {[%clk 0:00:26]}  Qxc3 {[%clk 0:01:05]} 28. Nd5 {[%clk 0:00:25]}  Qe5 {[%clk 0:00:54]} 29. Nxf6+ {[%clk 0:00:24]}  Qxf6 {[%clk 0:00:53]} 30. Qxf6 {[%clk 0:00:22]}  gxf6 {[%clk 0:00:53]} 31. Rxf6 {[%clk 0:00:23]}  Kg7 {[%clk 0:00:18]} 32. Ra6 {[%clk 0:00:22]}  Re7 {[%clk 0:00:18]} 33. Kf2 {[%clk 0:00:18]}  f6 {[%clk 0:00:17]} 34. Kf3 {[%clk 0:00:17]}  Kg6 {[%clk 0:00:18]} 35. g4 {[%clk 0:00:17]}  Kg5 {[%clk 0:00:17]} 36. h3 {[%clk 0:00:15]}  Rf7 {[%clk 0:00:16]} 37. Kg3 {[%clk 0:00:15]}  Kg6 {[%clk 0:00:15]} 38. Kf4 {[%clk 0:00:14]}  Rd7 {[%clk 0:00:14]} 39. Ra5 {[%clk 0:00:13]}  Rb7 {[%clk 0:00:04]} 40. Ra6 {[%clk 0:00:12]}  Rd7 {[%clk 0:00:04]} 41. g5 {[%clk 0:00:09]}  Rd4+ {[%clk 0:00:03]} 42. Ke3 {[%clk 0:00:08]}  Rh4 {[%clk 0:00:04]} 43. gxf6 {[%clk 0:00:06]}  Rxh3+ {[%clk 0:00:04]} 44. Kd4 {[%clk 0:00:06]}  Rh2 {[%clk 0:00:04]} 45. Rxa7 {[%clk 0:00:05]}  Kxf6 {[%clk 0:00:03]} 46. Kc5 {[%clk 0:00:03]}  Rh5+ {[%clk 0:00:03]} 47. Kb4 {[%clk 0:00:04]}  h6 {[%clk 0:00:03]} 48. Rb7 {[%clk 0:00:03]}  Re5 {[%clk 0:00:03]} 49. Rh7 {[%clk 0:00:02]}  h5 {[%clk 0:00:03]} 50. Rh8 {[%clk 0:00:03]}  Kg7 {[%clk 0:00:02]} 51. Rd8 {[%clk 0:00:02]}  h4 {[%clk 0:00:03]} 52. Rd4 {[%clk 0:00:03]}  Rh5 {[%clk 0:00:02]} 53. Rd2 {[%clk 0:00:04]}  h3 {[%clk 0:00:03]} 54. Rh2 {[%clk 0:00:04]}  Kf6 {[%clk 0:00:03]} 55. a4 {[%clk 0:00:05]}  bxa4 {[%clk 0:00:03]} 56. bxa4 {[%clk 0:00:06]}  Ke6 {[%clk 0:00:04]} 57. a5 {[%clk 0:00:06]}  Kd6 {[%clk 0:00:04]} 58. Kc4 {[%clk 0:00:06]}  Kc6 {[%clk 0:00:04]} 59. Kd4 {[%clk 0:00:06]}  Kb5 {[%clk 0:00:05]} 60. Ke4 {[%clk 0:00:07]}  Kxa5 {[%clk 0:00:06]} 61. Kf4 {[%clk 0:00:07]}  Rh8 {[%clk 0:00:06]} 62. Kg3 {[%clk 0:00:08]}  Kb6 {[%clk 0:00:07]} 63. Rxh3 {[%clk 0:00:09]}  Rxh3+ {[%clk 0:00:07]} 64. Kxh3 {[%clk 0:00:09]} 1/2-1/2


[Site "https://www.chess.com"]

[Event "Titled Tuesday Blitz February 14 Late 2023"]
[White "O`Gorman, Tom"]
[Black "Lodici, Lorenzo"]
[WhiteFideId "2508249"]
[BlackFideId "884189"]
[WhiteElo "2355"]
[BlackElo "2524"]
[Result "0-1"]
[Round "02"]
[TimeControl "180+2"]
[Date "2023.02.14"]
[WhiteClock "0:00:15"]
[BlackClock "0:00:19"]

1. d4 {[%clk 0:03:00]}  Nf6 {[%clk 0:02:54]} 2. c4 {[%clk 0:03:01]}  b6 {[%clk 0:02:50]} 3. Nc3 {[%clk 0:02:58]}  Bb7 {[%clk 0:02:46]} 4. f3 {[%clk 0:02:58]}  Nc6 {[%clk 0:02:45]} 5. d5 {[%clk 0:02:47]}  Ne5 {[%clk 0:00:23]} 6. e4 {[%clk 0:02:45]}  e6 {[%clk 0:00:23]} 7. f4 {[%clk 0:02:43]}  Ng6 {[%clk 0:00:22]} 8. e5 {[%clk 0:02:43]}  Ng8 {[%clk 0:00:22]} 9. Nf3 {[%clk 0:02:42]}  Bb4 {[%clk 0:00:21]} 10. dxe6 {[%clk 0:02:13]}  fxe6 {[%clk 0:00:20]} 11. Bd3 {[%clk 0:02:10]}  N8e7 {[%clk 0:00:20]} 12. O-O {[%clk 0:02:09]}  O-O {[%clk 0:00:20]} 13. Ne2 {[%clk 0:02:05]}  h6 {[%clk 0:00:19]} 14. Qc2 {[%clk 0:02:03]}  Qe8 {[%clk 0:00:19]} 15. Kh1 {[%clk 0:02:00]}  a5 {[%clk 0:00:19]} 16. a3 {[%clk 0:01:59]}  Bc5 {[%clk 0:00:19]} 17. b3 {[%clk 0:01:56]}  Nf5 {[%clk 0:00:19]} 18. Be4 {[%clk 0:01:49]}  Bxe4 {[%clk 0:00:17]} 19. Qxe4 {[%clk 0:01:50]}  c6 {[%clk 0:00:18]} 20. Bd2 {[%clk 0:01:45]}  Qe7 {[%clk 0:00:18]} 21. g4 {[%clk 0:01:37]}  Nfh4 {[%clk 0:00:17]} 22. Nxh4 {[%clk 0:01:35]}  Nxh4 {[%clk 0:00:18]} 23. Be1 {[%clk 0:01:28]}  Rae8 {[%clk 0:00:16]} 24. Rd1 {[%clk 0:01:13]}  g5 {[%clk 0:00:16]} 25. Bxh4 {[%clk 0:01:11]}  gxh4 {[%clk 0:00:16]} 26. Qg6+ {[%clk 0:01:04]}  Qg7 {[%clk 0:00:16]} 27. Qxg7+ {[%clk 0:01:05]}  Kxg7 {[%clk 0:00:17]} 28. Rxd7+ {[%clk 0:01:05]}  Rf7 {[%clk 0:00:18]} 29. Rxf7+ {[%clk 0:01:03]}  Kxf7 {[%clk 0:00:19]} 30. Rd1 {[%clk 0:01:02]}  Bxa3 {[%clk 0:00:18]} 31. Kg2 {[%clk 0:01:02]}  Ke7 {[%clk 0:00:17]} 32. f5 {[%clk 0:00:59]}  Rd8 {[%clk 0:00:15]} 33. Rxd8 {[%clk 0:00:55]}  Kxd8 {[%clk 0:00:15]} 34. Nd4 {[%clk 0:00:56]}  exf5 {[%clk 0:00:14]} 35. gxf5 {[%clk 0:00:56]}  Kd7 {[%clk 0:00:15]} 36. Kf3 {[%clk 0:00:56]}  Bb2 {[%clk 0:00:15]} 37. Ke4 {[%clk 0:00:56]}  h5 {[%clk 0:00:14]} 38. Nf3 {[%clk 0:00:51]}  b5 {[%clk 0:00:14]} 39. cxb5 {[%clk 0:00:50]}  cxb5 {[%clk 0:00:15]} 40. Kd5 {[%clk 0:00:50]}  a4 {[%clk 0:00:15]} 41. bxa4 {[%clk 0:00:50]}  bxa4 {[%clk 0:00:16]} 42. f6 {[%clk 0:00:42]}  a3 {[%clk 0:00:14]} 43. e6+ {[%clk 0:00:42]}  Kd8 {[%clk 0:00:14]} 44. e7+ {[%clk 0:00:39]}  Kd7 {[%clk 0:00:14]} 45. Nd2 {[%clk 0:00:15]}  a2 {[%clk 0:00:13]} 46. Nb3 {[%clk 0:00:16]}  Bxf6 {[%clk 0:00:14]} 47. Ke4 {[%clk 0:00:15]}  Kxe7 {[%clk 0:00:14]} 48. Kf5 {[%clk 0:00:15]}  Kf7 {[%clk 0:00:14]} 49. Ke4 {[%clk 0:00:15]}  Kg6 {[%clk 0:00:15]} 50. Kf4 {[%clk 0:00:15]}  Bg7 {[%clk 0:00:14]} 51. Ke4 {[%clk 0:00:15]}  Kg5 {[%clk 0:00:15]} 52. Kf3 {[%clk 0:00:16]}  Kf5 {[%clk 0:00:16]} 53. h3 {[%clk 0:00:16]}  Kg5 {[%clk 0:00:15]} 54. Ke3 {[%clk 0:00:16]}  Kf5 {[%clk 0:00:16]} 55. Kf3 {[%clk 0:00:17]}  Bf6 {[%clk 0:00:16]} 56. Ke3 {[%clk 0:00:17]}  Ke6 {[%clk 0:00:16]} 57. Ke4 {[%clk 0:00:18]}  Kd6 {[%clk 0:00:16]} 58. Kd3 {[%clk 0:00:15]}  Kd5 {[%clk 0:00:16]} 59. Kc2 {[%clk 0:00:15]}  Ke4 {[%clk 0:00:17]} 60. Kd2 {[%clk 0:00:12]}  Kf3 {[%clk 0:00:17]} 61. Ke1 {[%clk 0:00:13]}  Kg2 {[%clk 0:00:18]} 62. Ke2 {[%clk 0:00:13]}  Kxh3 {[%clk 0:00:18]} 63. Kf1 {[%clk 0:00:14]}  Kh2 {[%clk 0:00:19]} 64. Kf2 {[%clk 0:00:14]}  h3 {[%clk 0:00:19]} 65. Kf3 {[%clk 0:00:15]}  Kg1 {[%clk 0:00:19]} 0-1


[Site "https://www.chess.com"]

[Event "Titled Tuesday Blitz February 14 Late 2023"]
[White "Perera Alfonso, Rene Humberto"]
[Black "Ahmadzada, Ahmad"]
[WhiteFideId "3514722"]
[BlackFideId "13413007"]
[WhiteElo "2320"]
[BlackElo "2488"]
[Result "0-1"]
[Round "02"]
[TimeControl "180+2"]
[Date "2023.02.14"]
[WhiteClock "0:00:04"]
[BlackClock "0:00:06"]

1. e4 {[%clk 0:03:00]}  Nf6 {[%clk 0:02:59]} 2. e5 {[%clk 0:02:55]}  Nd5 {[%clk 0:02:59]} 3. Nc3 {[%clk 0:02:55]}  e6 {[%clk 0:02:49]} 4. d4 {[%clk 0:02:53]}  d6 {[%clk 0:02:46]} 5. Nf3 {[%clk 0:02:50]}  Nxc3 {[%clk 0:02:39]} 6. bxc3 {[%clk 0:02:50]}  dxe5 {[%clk 0:02:40]} 7. Nxe5 {[%clk 0:02:50]}  Nd7 {[%clk 0:02:40]} 8. Bf4 {[%clk 0:02:43]}  Bd6 {[%clk 0:02:22]} 9. Bb5 {[%clk 0:02:01]}  c6 {[%clk 0:01:41]} 10. Bc4 {[%clk 0:00:46]}  Qa5 {[%clk 0:01:26]} 11. O-O {[%clk 0:00:41]}  Nxe5 {[%clk 0:01:09]} 12. dxe5 {[%clk 0:00:38]}  Bxe5 {[%clk 0:01:09]} 13. Qg4 {[%clk 0:00:32]}  Bxf4 {[%clk 0:01:04]} 14. Qxf4 {[%clk 0:00:33]}  Qxc3 {[%clk 0:00:59]} 15. Rad1 {[%clk 0:00:32]}  O-O {[%clk 0:00:58]} 16. Rd3 {[%clk 0:00:30]}  Qf6 {[%clk 0:00:57]} 17. Qc7 {[%clk 0:00:24]}  b5 {[%clk 0:00:37]} 18. Bb3 {[%clk 0:00:17]}  a5 {[%clk 0:00:31]} 19. Rfd1 {[%clk 0:00:12]}  Ba6 {[%clk 0:00:19]} 20. Rf3 {[%clk 0:00:12]}  Rad8 {[%clk 0:00:14]} 21. Re1 {[%clk 0:00:07]}  Qd4 {[%clk 0:00:10]} 22. h4 {[%clk 0:00:07]}  Qd6 {[%clk 0:00:08]} 23. Qa7 {[%clk 0:00:06]}  c5 {[%clk 0:00:06]} 24. Rxf7 {[%clk 0:00:06]}  Rxf7 {[%clk 0:00:05]} 25. Rxe6 {[%clk 0:00:06]}  Qd1+ {[%clk 0:00:03]} 26. Kh2 {[%clk 0:00:05]}  c4 {[%clk 0:00:03]} 27. Qxa6 {[%clk 0:00:03]}  cxb3 {[%clk 0:00:04]} 28. axb3 {[%clk 0:00:03]}  Qg4 {[%clk 0:00:04]} 29. Qb6 {[%clk 0:00:04]}  Qxh4+ {[%clk 0:00:04]} 30. Kg1 {[%clk 0:00:04]}  Rd1+ {[%clk 0:00:05]} 31. Re1 {[%clk 0:00:04]}  Rxe1# {[%clk 0:00:06]} 0-1


[Site "https://www.chess.com"]

[Event "Titled Tuesday Blitz February 14 Late 2023"]
[White "Martinez Reyes, Pedro Ramon"]
[Black "Riehle, Marco"]
[WhiteFideId "3901807"]
[BlackFideId "12904392"]
[WhiteElo "2376"]
[BlackElo "2368"]
[Result "1-0"]
[Round "02"]
[TimeControl "180+2"]
[Date "2023.02.14"]
[WhiteClock "0:02:29"]
[BlackClock "0:02:21"]

1. c4 {[%clk 0:03:00]}  e6 {[%clk 0:02:58]} 2. Nc3 {[%clk 0:03:01]}  d5 {[%clk 0:02:59]} 3. d4 {[%clk 0:03:01]}  c5 {[%clk 0:02:59]} 4. cxd5 {[%clk 0:02:59]}  cxd4 {[%clk 0:02:58]} 5. Qxd4 {[%clk 0:03:00]}  Nc6 {[%clk 0:02:59]} 6. Qd1 {[%clk 0:03:00]}  exd5 {[%clk 0:02:59]} 7. e3 {[%clk 0:02:57]}  d4 {[%clk 0:02:59]} 8. exd4 {[%clk 0:02:57]}  Qxd4 {[%clk 0:03:00]} 9. Be3 {[%clk 0:02:53]}  Qxd1+ {[%clk 0:03:00]} 10. Rxd1 {[%clk 0:02:54]}  Bb4 {[%clk 0:03:00]} 11. Bb5 {[%clk 0:02:51]}  Ne7 {[%clk 0:03:00]} 12. Ne2 {[%clk 0:02:51]}  Be6 {[%clk 0:02:57]} 13. O-O {[%clk 0:02:50]}  O-O {[%clk 0:02:58]} 14. a3 {[%clk 0:02:49]}  Ba5 {[%clk 0:02:57]} 15. Nf4 {[%clk 0:02:43]}  Bf5 {[%clk 0:02:49]} 16. Nfd5 {[%clk 0:02:40]}  Rfd8 {[%clk 0:02:44]} 17. Bxc6 {[%clk 0:02:37]}  Nxc6 {[%clk 0:02:44]} 18. b4 {[%clk 0:02:37]}  Bb6 {[%clk 0:02:39]} 19. b5 {[%clk 0:02:31]}  Kf8 {[%clk 0:02:20]} 20. bxc6 {[%clk 0:02:28]}  bxc6 {[%clk 0:02:20]} 21. Nxb6 {[%clk 0:02:28]}  axb6 {[%clk 0:02:20]} 22. Bxb6 {[%clk 0:02:29]}  Rxd1 {[%clk 0:02:20]} 23. Rxd1 {[%clk 0:02:29]}  Rxa3 {[%clk 0:02:21]} 24. Bc5+ {[%clk 0:02:29]} 1-0


[Site "https://www.chess.com"]

[Event "Titled Tuesday Blitz February 14 Late 2023"]
[White "Krallis, Christos"]
[Black "Mekhitarian, Krikor Sevag"]
[WhiteFideId "4298896"]
[BlackFideId "2107660"]
[WhiteElo "2344"]
[BlackElo "2537"]
[Result "0-1"]
[Round "02"]
[TimeControl "180+2"]
[Date "2023.02.14"]
[WhiteClock "0:00:06"]
[BlackClock "0:00:19"]

1. e4 {[%clk 0:03:00]}  c5 {[%clk 0:02:56]} 2. Nf3 {[%clk 0:03:01]}  e6 {[%clk 0:02:55]} 3. g3 {[%clk 0:02:58]}  Nc6 {[%clk 0:02:53]} 4. Bg2 {[%clk 0:02:58]}  Nf6 {[%clk 0:02:52]} 5. Qe2 {[%clk 0:02:58]}  e5 {[%clk 0:02:51]} 6. O-O {[%clk 0:02:56]}  d6 {[%clk 0:02:51]} 7. c3 {[%clk 0:02:50]}  Be7 {[%clk 0:02:50]} 8. d3 {[%clk 0:02:51]}  O-O {[%clk 0:02:49]} 9. a4 {[%clk 0:02:51]}  Re8 {[%clk 0:02:49]} 10. Na3 {[%clk 0:02:51]}  h6 {[%clk 0:02:49]} 11. Nc4 {[%clk 0:02:51]}  Be6 {[%clk 0:02:50]} 12. Nh4 {[%clk 0:02:46]}  d5 {[%clk 0:02:48]} 13. Ne3 {[%clk 0:02:41]}  Bf8 {[%clk 0:02:41]} 14. h3 {[%clk 0:02:22]}  Qd7 {[%clk 0:02:39]} 15. Kh2 {[%clk 0:02:20]}  Rad8 {[%clk 0:02:38]} 16. Rd1 {[%clk 0:01:57]}  d4 {[%clk 0:02:28]} 17. Nef5 {[%clk 0:01:50]}  dxc3 {[%clk 0:02:16]} 18. bxc3 {[%clk 0:01:50]}  c4 {[%clk 0:02:16]} 19. Qf3 {[%clk 0:01:35]}  Nh7 {[%clk 0:01:54]} 20. d4 {[%clk 0:01:30]}  exd4 {[%clk 0:01:54]} 21. cxd4 {[%clk 0:01:21]}  Ng5 {[%clk 0:01:54]} 22. Qf4 {[%clk 0:00:44]}  g6 {[%clk 0:01:47]} 23. d5 {[%clk 0:00:31]}  gxf5 {[%clk 0:01:42]} 24. Bb2 {[%clk 0:00:31]}  Bd6 {[%clk 0:00:52]} 25. dxe6 {[%clk 0:00:31]}  fxe6 {[%clk 0:00:51]} 26. e5 {[%clk 0:00:21]}  Qg7 {[%clk 0:00:51]} 27. Bxc6 {[%clk 0:00:13]}  bxc6 {[%clk 0:00:49]} 28. Qxc4 {[%clk 0:00:13]}  Bxe5 {[%clk 0:00:44]} 29. Bxe5 {[%clk 0:00:05]}  Qxe5 {[%clk 0:00:44]} 30. Qxc6 {[%clk 0:00:06]}  Qe2 {[%clk 0:00:36]} 31. Rxd8 {[%clk 0:00:03]}  Qxf2+ {[%clk 0:00:34]} 32. Qg2 {[%clk 0:00:04]}  Qxg2+ {[%clk 0:00:34]} 33. Kxg2 {[%clk 0:00:04]}  Rxd8 {[%clk 0:00:35]} 34. Re1 {[%clk 0:00:04]}  Rd2+ {[%clk 0:00:35]} 35. Kf1 {[%clk 0:00:04]}  Kf7 {[%clk 0:00:34]} 36. Re2 {[%clk 0:00:03]}  Rxe2 {[%clk 0:00:35]} 37. Kxe2 {[%clk 0:00:04]}  Nxh3 {[%clk 0:00:35]} 38. Nf3 {[%clk 0:00:04]}  Kf6 {[%clk 0:00:35]} 39. Nd4 {[%clk 0:00:04]}  Ng5 {[%clk 0:00:33]} 40. Nc6 {[%clk 0:00:05]}  a6 {[%clk 0:00:30]} 41. Nb4 {[%clk 0:00:05]}  Ne4 {[%clk 0:00:30]} 42. Nxa6 {[%clk 0:00:04]}  Nc3+ {[%clk 0:00:30]} 43. Kf3 {[%clk 0:00:04]}  Nxa4 {[%clk 0:00:31]} 44. Nc7 {[%clk 0:00:04]}  Nc5 {[%clk 0:00:31]} 45. Ne8+ {[%clk 0:00:04]}  Kg6 {[%clk 0:00:31]} 46. g4 {[%clk 0:00:04]}  Kg5 {[%clk 0:00:20]} 47. gxf5 {[%clk 0:00:04]}  exf5 {[%clk 0:00:21]} 48. Nd6 {[%clk 0:00:04]}  Ne6 {[%clk 0:00:18]} 49. Nf7+ {[%clk 0:00:04]}  Kg6 {[%clk 0:00:19]} 50. Nd6 {[%clk 0:00:05]}  Kf6 {[%clk 0:00:18]} 51. Nc4 {[%clk 0:00:05]}  Kg5 {[%clk 0:00:19]} 52. Ne5 {[%clk 0:00:05]}  h5 {[%clk 0:00:19]} 53. Nf7+ {[%clk 0:00:05]}  Kf6 {[%clk 0:00:20]} 54. Nd6 {[%clk 0:00:05]}  Nf8 {[%clk 0:00:18]} 55. Nc4 {[%clk 0:00:06]}  Ng6 {[%clk 0:00:18]} 56. Ne3 {[%clk 0:00:06]}  Kg5 {[%clk 0:00:18]} 57. Nd5 {[%clk 0:00:06]}  Ne5+ {[%clk 0:00:18]} 58. Kg3 {[%clk 0:00:05]}  h4+ {[%clk 0:00:19]} 59. Kh3 {[%clk 0:00:06]}  Ng6 {[%clk 0:00:20]} 60. Kh2 {[%clk 0:00:06]}  Nf4 {[%clk 0:00:20]} 61. Nc7 {[%clk 0:00:06]}  Kg4 {[%clk 0:00:20]} 62. Ne8 {[%clk 0:00:06]}  Nh5 {[%clk 0:00:20]} 63. Nd6 {[%clk 0:00:06]}  f4 {[%clk 0:00:20]} 64. Nc4 {[%clk 0:00:07]}  Nf6 {[%clk 0:00:19]} 65. Ne5+ {[%clk 0:00:07]}  Kf5 {[%clk 0:00:19]} 66. Nf3 {[%clk 0:00:07]}  Kg4 {[%clk 0:00:18]} 67. Ne5+ {[%clk 0:00:07]}  Kh5 {[%clk 0:00:18]} 68. Kh3 {[%clk 0:00:06]}  Ne4 {[%clk 0:00:17]} 69. Nf3 {[%clk 0:00:06]}  Ng5+ {[%clk 0:00:17]} 70. Kg2 {[%clk 0:00:03]}  Nxf3 {[%clk 0:00:17]} 71. Kxf3 {[%clk 0:00:04]}  Kg5 {[%clk 0:00:17]} 72. Kf2 {[%clk 0:00:05]}  Kg4 {[%clk 0:00:18]} 73. Kg2 {[%clk 0:00:06]}  h3+ {[%clk 0:00:18]} 74. Kg1 {[%clk 0:00:06]}  Kg3 {[%clk 0:00:19]} 75. Kh1 {[%clk 0:00:06]}  f3 {[%clk 0:00:19]} 0-1


[Site "https://www.chess.com"]

[Event "Titled Tuesday Blitz February 14 Late 2023"]
[White "Oganian, Miran"]
[Black "Kleiman, Jake"]
[WhiteFideId "4122488"]
[BlackFideId "2020041"]
[WhiteElo "2439"]
[BlackElo "2399"]
[Result "1/2-1/2"]
[Round "02"]
[TimeControl "180+2"]
[Date "2023.02.14"]
[WhiteClock "0:00:02"]
[BlackClock "0:00:07"]

1. e4 {[%clk 0:03:00]}  e5 {[%clk 0:03:00]} 2. Nf3 {[%clk 0:03:00]}  Nc6 {[%clk 0:03:00]} 3. Nc3 {[%clk 0:03:00]}  Nf6 {[%clk 0:03:00]} 4. d4 {[%clk 0:03:00]}  exd4 {[%clk 0:03:01]} 5. Nxd4 {[%clk 0:03:01]}  Bb4 {[%clk 0:03:02]} 6. Nxc6 {[%clk 0:03:01]}  bxc6 {[%clk 0:03:03]} 7. Bd3 {[%clk 0:03:02]}  O-O {[%clk 0:03:04]} 8. O-O {[%clk 0:03:02]}  d5 {[%clk 0:03:04]} 9. exd5 {[%clk 0:03:03]}  cxd5 {[%clk 0:03:05]} 10. h3 {[%clk 0:03:02]}  h6 {[%clk 0:03:05]} 11. Qf3 {[%clk 0:03:03]}  Re8 {[%clk 0:03:04]} 12. Bf4 {[%clk 0:03:03]}  Bd6 {[%clk 0:03:04]} 13. Rfe1 {[%clk 0:02:58]}  Bxf4 {[%clk 0:03:01]} 14. Qxf4 {[%clk 0:02:54]}  Be6 {[%clk 0:02:59]} 15. Nb5 {[%clk 0:02:51]}  Re7 {[%clk 0:02:55]} 16. Nd4 {[%clk 0:02:50]}  Re8 {[%clk 0:02:31]} 17. Bf5 {[%clk 0:02:45]}  Bxf5 {[%clk 0:01:39]} 18. Nxf5 {[%clk 0:02:45]}  Kh7 {[%clk 0:01:39]} 19. Rxe8 {[%clk 0:02:41]}  Nxe8 {[%clk 0:01:38]} 20. Ne3 {[%clk 0:02:29]}  Nf6 {[%clk 0:01:38]} 21. Rd1 {[%clk 0:02:28]}  c6 {[%clk 0:01:36]} 22. c4 {[%clk 0:02:28]}  Qd7 {[%clk 0:01:31]} 23. cxd5 {[%clk 0:02:25]}  cxd5 {[%clk 0:01:31]} 24. Nxd5 {[%clk 0:02:23]}  Nxd5 {[%clk 0:01:27]} 25. Qe4+ {[%clk 0:02:23]}  Kg8 {[%clk 0:01:28]} 26. Rxd5 {[%clk 0:02:22]}  Qc7 {[%clk 0:01:28]} 27. Re5 {[%clk 0:02:18]}  Rf8 {[%clk 0:01:23]} 28. Re8 {[%clk 0:02:01]}  Rxe8 {[%clk 0:01:01]} 29. Qxe8+ {[%clk 0:02:00]}  Kh7 {[%clk 0:01:02]} 30. Qe4+ {[%clk 0:01:59]}  g6 {[%clk 0:01:02]} 31. b3 {[%clk 0:01:56]}  h5 {[%clk 0:01:00]} 32. g3 {[%clk 0:01:56]}  a5 {[%clk 0:00:52]} 33. Kg2 {[%clk 0:01:56]}  Qc5 {[%clk 0:00:51]} 34. g4 {[%clk 0:01:48]}  hxg4 {[%clk 0:00:51]} 35. hxg4 {[%clk 0:01:48]}  Kg7 {[%clk 0:00:51]} 36. f4 {[%clk 0:01:46]}  Qa3 {[%clk 0:00:48]} 37. Qe2 {[%clk 0:01:44]}  Kg8 {[%clk 0:00:44]} 38. f5 {[%clk 0:01:42]}  gxf5 {[%clk 0:00:42]} 39. gxf5 {[%clk 0:01:43]}  Kg7 {[%clk 0:00:37]} 40. Qe5+ {[%clk 0:01:27]}  Kh7 {[%clk 0:00:36]} 41. Qh2+ {[%clk 0:01:18]}  Kg7 {[%clk 0:00:36]} 42. Kf3 {[%clk 0:01:17]}  Kf6 {[%clk 0:00:32]} 43. Kg4 {[%clk 0:01:09]}  Qc5 {[%clk 0:00:23]} 44. Qh4+ {[%clk 0:00:56]}  Kg7 {[%clk 0:00:21]} 45. f6+ {[%clk 0:00:55]}  Kg6 {[%clk 0:00:20]} 46. Qe1 {[%clk 0:00:24]}  Qf5+ {[%clk 0:00:17]} 47. Kg3 {[%clk 0:00:23]}  Kxf6 {[%clk 0:00:16]} 48. Kg2 {[%clk 0:00:10]}  Qg4+ {[%clk 0:00:16]} 49. Kh1 {[%clk 0:00:09]}  Qh5+ {[%clk 0:00:15]} 50. Kg1 {[%clk 0:00:09]}  Qg5+ {[%clk 0:00:16]} 51. Kh1 {[%clk 0:00:09]}  Qe5 {[%clk 0:00:16]} 52. Qf2+ {[%clk 0:00:08]}  Ke6 {[%clk 0:00:16]} 53. Qb6+ {[%clk 0:00:08]}  Kf5 {[%clk 0:00:16]} 54. Qf2+ {[%clk 0:00:08]}  Kg6 {[%clk 0:00:16]} 55. Qg2+ {[%clk 0:00:08]}  Qg5 {[%clk 0:00:15]} 56. Qc6+ {[%clk 0:00:08]}  Kh5 {[%clk 0:00:14]} 57. Qf3+ {[%clk 0:00:07]}  Kg6 {[%clk 0:00:14]} 58. Qc6+ {[%clk 0:00:07]}  f6 {[%clk 0:00:14]} 59. Qe8+ {[%clk 0:00:06]}  Kf5 {[%clk 0:00:14]} 60. Qd7+ {[%clk 0:00:06]}  Kf4 {[%clk 0:00:14]} 61. Qd2+ {[%clk 0:00:06]}  Kf3 {[%clk 0:00:14]} 62. Qd3+ {[%clk 0:00:06]}  Kf2 {[%clk 0:00:14]} 63. Qc2+ {[%clk 0:00:06]}  Ke1 {[%clk 0:00:15]} 64. Qc3+ {[%clk 0:00:05]}  Kd1 {[%clk 0:00:15]} 65. Qd3+ {[%clk 0:00:02]}  Kc1 {[%clk 0:00:15]} 66. Qc3+ {[%clk 0:00:02]}  Kb1 {[%clk 0:00:15]} 67. a3 {[%clk 0:00:02]}  Ka2 {[%clk 0:00:13]} 68. b4 {[%clk 0:00:02]}  axb4 {[%clk 0:00:14]} 69. axb4 {[%clk 0:00:03]}  Qd5+ {[%clk 0:00:14]} 70. Kh2 {[%clk 0:00:03]}  f5 {[%clk 0:00:13]} 71. Kg3 {[%clk 0:00:03]}  Qe4 {[%clk 0:00:12]} 72. b5 {[%clk 0:00:02]}  f4+ {[%clk 0:00:12]} 73. Kf2 {[%clk 0:00:02]}  Qd5 {[%clk 0:00:09]} 74. b6 {[%clk 0:00:02]}  Qb5 {[%clk 0:00:09]} 75. Qf6 {[%clk 0:00:01]}  Kb3 {[%clk 0:00:08]} 76. Kf3 {[%clk 0:00:02]}  Ka4 {[%clk 0:00:07]} 77. Qxf4+ {[%clk 0:00:02]}  Ka5 {[%clk 0:00:07]} 78. Qc7 {[%clk 0:00:02]}  Qxb6 {[%clk 0:00:07]} 79. Qc3+ {[%clk 0:00:02]}  Qb4 {[%clk 0:00:07]} 80. Qxb4+ {[%clk 0:00:02]}  Kxb4 {[%clk 0:00:07]} 1/2-1/2


[Site "https://www.chess.com"]

[Event "Titled Tuesday Blitz February 14 Late 2023"]
[White "Erdogdu, Mert"]
[Black "The_Sherman_Variation"]
[WhiteFideId "6301495"]
[WhiteElo "2413"]
[BlackElo "2511"]
[Result "1-0"]
[Round "02"]
[TimeControl "180+2"]
[Date "2023.02.14"]
[WhiteClock "0:01:27"]
[BlackClock "0:01:45"]

1. e4 {[%clk 0:03:00]}  c6 {[%clk 0:02:56]} 2. d4 {[%clk 0:03:00]}  d5 {[%clk 0:02:56]} 3. exd5 {[%clk 0:03:01]}  cxd5 {[%clk 0:02:56]} 4. c4 {[%clk 0:03:02]}  Nf6 {[%clk 0:02:56]} 5. Nc3 {[%clk 0:03:03]}  dxc4 {[%clk 0:02:55]} 6. Bxc4 {[%clk 0:03:02]}  e6 {[%clk 0:02:56]} 7. Nf3 {[%clk 0:03:03]}  Nc6 {[%clk 0:02:56]} 8. O-O {[%clk 0:03:03]}  Bb4 {[%clk 0:02:56]} 9. Bg5 {[%clk 0:02:58]}  h6 {[%clk 0:02:49]} 10. Bh4 {[%clk 0:02:58]}  O-O {[%clk 0:02:45]} 11. Re1 {[%clk 0:02:52]}  Be7 {[%clk 0:02:43]} 12. a3 {[%clk 0:02:49]}  a6 {[%clk 0:02:39]} 13. Qd3 {[%clk 0:02:41]}  b5 {[%clk 0:02:35]} 14. Bb3 {[%clk 0:02:41]}  Bb7 {[%clk 0:02:35]} 15. Rad1 {[%clk 0:02:41]}  Na5 {[%clk 0:02:24]} 16. Bc2 {[%clk 0:02:39]}  g6 {[%clk 0:02:25]} 17. Rxe6 {[%clk 0:02:16]}  Bxf3 {[%clk 0:02:08]} 18. gxf3 {[%clk 0:01:55]}  Kh8 {[%clk 0:01:44]} 19. Rxe7 {[%clk 0:01:36]}  Qxe7 {[%clk 0:01:45]} 20. Ne4 {[%clk 0:01:27]} 1-0


[Site "https://www.chess.com"]